bitfinex/quotes_SOLUSD_20241226
["timestamp","ask_amount","ask_price","bid_price","bid_amount"]
[1735219662016,20.0,189.34,189.26,9.67645305]
[1735219662331,20.0,189.34,189.25,9.67645305]
[1735219662718,20.0,189.34,189.24,9.67645305]
[1735219663902,20.0,189.34,189.25,9.67645305]
[1735219665112,20.0,189.34,189.26,9.67645305]
[1735219665826,20.0,189.37,189.28,1.6345]
[1735219666038,21.29366709,189.4,189.28,11.31095305]
[1735219666522,21.29366709,189.4,189.28,1.6345]
[1735219667133,9.2398,189.4,189.29,9.67645305]
[1735219668134,6.3978852,189.41,189.3,33.45333705]
[1735219668434,9.2383,189.43,189.31,9.67645305]
[1735219670329,20.0,189.4,189.29,20.0]
[1735219670633,20.0,189.38,189.28,1.6345]
[1735219672639,20.0,189.38,189.28,11.31095305]
[1735219681847,20.0,189.37,189.28,1.6345]
[1735219682035,20.0,189.37,189.24,9.67645305]
[1735219682348,20.0,189.36,189.24,9.67645305]
[1735219683532,20.0,189.34,189.24,9.67645305]
[1735219683730,20.0,189.34,189.23,11.27855305]
[1735219685054,20.0,189.3,189.21,9.67645305]
[1735219685273,20.0,189.3,189.2,9.67645305]
[1735219686064,20.0,189.3,189.21,9.67645305]
[1735219686654,20.0,189.3,189.22,9.67645305]
[1735219689636,20.0,189.3,189.21,9.67645305]
[1735219692959,20.0,189.3,189.23,9.67645305]
[1735219706689,20.0,189.3,189.19,0.7925643]
[1735219706997,20.0,189.3,189.22,9.67645305]
[1735219707291,20.0,189.3,189.25,9.67645305]
[1735219707788,20.0,189.3,189.24,9.67645305]
[1735219710165,20.0,189.3,189.23,9.67645305]
[1735219710875,20.0,189.3,189.24,9.67645305]
[1735219712167,8.1058,189.33,189.25,9.67645305]
[1735219713589,8.1058,189.33,189.21,23.776884]
[1735219713771,8.1058,189.33,189.24,9.67645305]
[1735219718797,8.1058,189.33,189.21,23.776884]
[1735219719094,8.1058,189.33,189.24,9.67645305]
[1735219722601,8.1058,189.33,189.22,0.79246919]
[1735219722785,8.1058,189.33,189.23,9.67645305]
[1735219723502,8.1058,189.33,189.21,36.989184]
[1735219723794,8.1058,189.33,189.23,9.67645305]
[1735219730226,8.1058,189.33,189.19,0.79246518]
[1735219730227,20.0,189.3,189.19,0.79246518]
[1735219730384,20.0,189.3,189.2,9.67645305]
[1735219730585,20.0,189.3,189.18,9.873626]
[1735219730790,20.0,189.3,189.2,9.67645305]
[1735219731505,20.0,189.3,189.18,1.5696]
[1735219731694,20.0,189.3,189.2,9.67645305]
[1735219731887,20.0,189.3,189.21,9.67645305]
[1735219732094,20.0,189.3,189.19,23.776884]
[1735219732311,20.0,189.3,189.23,9.67645305]
[1735219732807,20.0,189.3,189.19,24.56945942]
[1735219733012,20.0,189.3,189.23,9.67645305]
[1735219733300,20.0,189.3,189.22,9.67645305]
[1735219735618,20.0,189.3,189.18,1.5696]
[1735219735920,20.0,189.3,189.21,9.67645305]
[1735219741212,20.0,189.25,189.13,2.38366963]
[1735219741397,20.0,189.25,189.13,11.26745305]
[1735219741598,20.0,189.25,189.13,9.67645305]
[1735219742295,8.1571,189.23,189.11,9.67645305]
[1735219742518,8.1571,189.23,189.1,33.45333705]
[1735219742699,20.0,189.2,189.1,9.67645305]
[1735219743099,20.0,189.2,189.07,0.79304782]
[1735219743100,0.12549,189.19,189.07,0.79304782]
[1735219743294,0.12549,189.19,189.04,14.01765426]
[1735219743605,0.12549,189.19,189.09,9.67645305]
[1735219743814,0.12549,189.19,189.08,9.67645305]
[1735219744122,0.12549,189.19,189.09,9.67645305]
[1735219744902,0.12549,189.19,189.08,9.67645305]
[1735219746327,0.12549,189.19,189.05,0.79314885]
[1735219746621,0.12549,189.19,189.08,9.67645305]
[1735219746820,20.0,189.16,189.05,0.79314885]
[1735219747024,0.12549,189.14,189.02,0.79318209]
[1735219747224,0.12549,189.12,189.0,0.79327018]
[1735219747517,0.12549,189.12,189.01,9.67645305]
[1735219748103,1.551,189.11,188.99,1.82806604]
[1735219748302,0.12549,189.1,188.99,1.0346569]
[1735219748502,20.0,189.08,188.99,1.0346569]
[1735219748719,8.107,189.11,188.99,1.0346569]
[1735219748720,20.0,189.06,188.99,1.0346569]
[1735219750309,11.90198111,189.09,189.0,9.67645305]
[1735219750514,8.107,189.11,189.0,9.67645305]
[1735219750721,20.0,189.08,189.01,9.67645305]
[1735219751026,20.0,189.08,188.99,10.71110995]
[1735219751236,20.0,189.08,188.99,1.0346569]
[1735219751407,20.0,189.08,188.99,10.71110995]
[1735219752916,20.0,189.08,188.99,1.0346569]
[1735219753227,20.0,189.08,188.99,10.71110995]
[1735219756029,20.0,189.08,189.01,9.67645305]
[1735219756335,20.0,189.08,189.0,9.67645305]
[1735219756518,20.0,189.08,188.99,1.0346569]
[1735219759307,20.0,189.07,188.99,1.0346569]
[1735219759725,20.0,189.05,188.99,1.0346569]
[1735219760527,8.0289,189.03,188.99,1.0346569]
[1735219769753,8.0289,189.08,188.99,1.0346569]
[1735219769923,8.0289,189.08,189.0,9.67645305]
[1735219771133,8.0289,189.08,188.99,1.0346569]
[1735219771328,20.0,189.05,188.99,1.0346569]
[1735219773950,8.0289,189.08,188.99,10.71110995]
[1735219774127,8.0289,189.08,189.0,9.67645305]
[1735219775652,8.0289,189.08,188.99,1.0346569]
[1735219775944,8.0289,189.08,189.0,9.67645305]
[1735219776133,8.0289,189.08,188.99,10.71110995]
[1735219776327,20.0,189.08,188.99,10.71110995]
[1735219776548,8.0215,189.12,189.01,9.67645305]
[1735219776748,20.0,189.09,189.01,9.67645305]
[1735219777748,8.0215,189.12,189.01,9.67645305]
[1735219780052,8.0215,189.12,189.02,9.67645305]
[1735219781755,8.0215,189.12,189.01,9.67645305]
[1735219782135,20.0,189.09,188.99,10.71110995]
[1735219782347,20.0,189.09,188.99,1.0346569]
[1735219783992,20.0,189.09,188.99,10.71110995]
[1735219785861,20.0,189.09,188.99,1.0346569]
[1735219786238,20.0,189.07,188.99,1.0346569]
[1735219786440,8.14699,189.06,188.99,1.0346569]
[1735219786654,20.0,189.03,188.99,1.0346569]
[1735219790075,8.0215,189.06,188.99,1.0346569]
[1735219791172,20.0,189.03,188.99,1.0346569]
[1735219793484,8.0215,189.06,188.99,1.0346569]
[1735219799184,20.0,189.03,188.99,1.0346569]
[1735219799387,20.0,189.02,188.99,1.0346569]
[1735219801363,8.0215,189.06,188.99,1.0346569]
[1735219801570,12.94163918,189.09,188.99,1.0346569]
[1735219801768,53.902374,189.08,188.99,1.0346569]
[1735219801991,23.902374,189.06,188.99,1.0346569]
[1735219802198,53.902374,189.06,188.99,1.0346569]
[1735219802401,23.902374,189.06,188.99,1.0346569]
[1735219802768,20.0,189.03,188.99,1.0346569]
[1735219803206,23.776884,189.06,188.99,1.0346569]
[1735219803512,8.068,189.07,188.99,1.0346569]
[1735219803513,8.068,189.07,188.99,10.71110995]
[1735219803676,15.11051293,189.12,188.99,10.71110995]
[1735219803677,17.3214,189.12,189.0,9.67645305]
[1735219803877,17.3214,189.12,188.99,1.0346569]
[1735219804196,23.902374,189.11,188.99,10.71110995]
[1735219804394,17.3214,189.12,188.99,10.71110995]
[1735219804916,20.0,189.09,189.01,9.67645305]
[1735219805065,20.0,189.09,188.99,1.0346569]
[1735219805266,23.902374,189.08,188.99,1.0346569]
[1735219806091,20.0,189.09,188.99,10.71110995]
[1735219807500,20.0,189.09,189.0,9.67645305]
[1735219807707,20.0,189.09,188.99,10.71110995]
[1735219808394,8.068,189.12,189.01,9.67645305]
[1735219808796,8.068,189.12,188.99,1.82809191]
[1735219808991,23.776884,189.11,189.0,9.67645305]
[1735219809177,23.776884,189.11,189.01,9.67645305]
[1735219810211,23.776884,189.11,189.01,15.14474723]
[1735219811290,23.902374,189.14,189.03,15.14474723]
[1735219811608,20.0,189.12,189.04,15.14474723]
[1735219811811,15.19537938,189.19,189.06,16.64584723]
[1735219811987,9.2504,189.19,189.07,15.14474723]
[1735219812291,23.902374,189.18,189.06,16.64584723]
[1735219812811,8.0508,189.2,189.07,15.14474723]
[1735219812983,8.0508,189.2,189.08,15.14474723]
[1735219813898,37.46779305,189.19,189.06,1.5011]
[1735219814098,43.32490598,189.19,189.06,1.5011]
[1735219814293,20.0,189.12,189.06,1.5011]
[1735219814501,20.0,189.12,189.01,16.76254723]
[1735219814817,20.0,189.12,189.01,1.6178]
[1735219815023,23.776884,189.13,189.01,1.6178]
[1735219815317,23.776884,189.13,189.01,16.76254723]
[1735219815522,20.0,189.14,189.03,15.14474723]
[1735219815816,20.0,189.14,189.04,15.14474723]
[1735219816878,9.2499,189.19,189.09,15.14474723]
[1735219817084,8.0508,189.2,189.09,15.14474723]
[1735219817316,23.776884,189.19,189.08,15.14474723]
[1735219817524,8.0508,189.2,189.05,35.93792086]
[1735219817689,8.0508,189.2,189.05,35.14474723]
[1735219817898,23.902374,189.19,189.07,15.14474723]
[1735219818303,23.902374,189.19,189.08,15.14474723]
[1735219818824,0.12549,189.19,189.09,15.14474723]
[1735219818996,8.0508,189.2,189.09,15.14474723]
[1735219819808,23.776884,189.19,189.08,16.76254723]
[1735219819998,23.776884,189.19,189.09,15.14474723]
[1735219821015,8.0508,189.2,189.1,15.14474723]
[1735219822316,8.0508,189.2,189.09,15.14474723]
[1735219822515,23.776884,189.19,189.08,16.76254723]
[1735219822732,0.12549,189.18,189.08,1.6178]
[1735219823021,0.12549,189.16,189.05,15.14474723]
[1735219823228,20.0,189.14,189.04,15.14474723]
[1735219823533,23.776884,189.13,189.03,1.6433]
[1735219823735,0.12549,189.12,189.03,1.6433]
[1735219824711,20.0,189.1,188.99,2.6779569]
[1735219824901,20.0,189.1,189.0,15.14474723]
[1735219825335,20.0,189.1,188.99,2.6779569]
[1735219825543,20.0,189.1,189.0,15.14474723]
[1735219826447,20.0,189.1,189.01,15.14474723]
[1735219831312,20.0,189.1,189.02,15.14474723]
[1735219831743,9.251,189.17,189.03,15.14474723]
[1735219831942,9.251,189.17,189.04,15.14474723]
[1735219833051,5.85711293,189.19,189.07,15.14474723]
[1735219833356,23.902374,189.19,189.06,15.14474723]
[1735219833919,23.902374,189.19,189.07,15.14474723]
[1735219834325,20.0,189.17,189.07,15.14474723]
[1735219834526,17.3003,189.2,189.09,15.14474723]
[1735219835020,23.776884,189.19,189.09,15.14474723]
[1735219837041,23.776884,189.19,189.07,16.78804723]
[1735219837547,23.776884,189.19,189.09,15.14474723]
[1735219838455,23.776884,189.19,189.1,15.14474723]
[1735219840227,8.0508,189.2,189.1,15.14474723]
[1735219840433,8.0508,189.2,189.12,15.14474723]
[1735219841543,8.0508,189.2,189.1,15.14474723]
[1735219841849,8.0508,189.2,189.09,15.14474723]
[1735219842144,8.0508,189.2,189.1,15.14474723]
[1735219843044,8.0508,189.2,189.12,15.14474723]
[1735219845457,8.0508,189.2,189.11,15.14474723]
[1735219845659,23.776884,189.19,189.08,15.14474723]
[1735219845959,23.776884,189.19,189.09,15.14474723]
[1735219847455,8.0508,189.2,189.1,15.14474723]
[1735219847640,8.0508,189.2,189.13,15.14474723]
[1735219848735,8.0508,189.2,189.11,0.79295092]
[1735219848939,8.0508,189.2,189.13,15.14474723]
[1735219849867,8.0508,189.2,189.14,15.14474723]
[1735219850030,8.0508,189.2,189.11,0.79295092]
[1735219850357,8.0508,189.2,189.13,15.14474723]
[1735219852256,7.8397,189.24,189.14,15.14474723]
[1735219852853,23.776884,189.23,189.13,15.14474723]
[1735219853156,0.12549,189.22,189.11,15.14474723]
[1735219853359,0.12549,189.22,189.09,15.14474723]
[1735219854153,0.12549,189.22,189.1,20.0]
[1735219854368,0.12549,189.22,189.09,9.6848108]
[1735219854739,20.0,189.18,189.09,9.6848108]
[1735219855964,20.0,189.19,189.09,9.6848108]
[1735219856265,20.0,189.18,189.09,9.6848108]
[1735219857164,21.543,189.18,189.07,14.8653]
[1735219857461,30.154084,189.17,189.06,9.6848108]
[1735219858066,0.12549,189.16,189.06,9.6848108]
[1735219858631,30.154084,189.17,189.07,9.6848108]
[1735219858959,30.154084,189.17,189.09,9.6848108]
[1735219859144,6.3772,189.17,189.1,9.6848108]
[1735219859564,6.3772,189.17,189.11,9.6848108]
[1735219860061,6.3772,189.22,189.14,9.6848108]
[1735219862065,6.3772,189.22,189.1,14.01277247]
[1735219862280,6.3772,189.22,189.11,15.12791574]
[1735219863290,6.3772,189.22,189.12,15.12791574]
[1735219864174,6.3772,189.22,189.13,15.12791574]
[1735219864375,6.3772,189.22,189.16,15.12791574]
[1735219864678,6.5571,189.27,189.19,15.12791574]
[1735219865093,6.5571,189.27,189.22,15.12791574]
[1735219865379,1.551,189.28,189.22,15.12791574]
[1735219866389,23.3695589,189.31,189.22,15.12791574]
[1735219866679,23.3695589,189.31,189.23,15.12791574]
[1735219866984,20.0,189.28,189.19,15.12791574]
[1735219867986,20.0,189.28,189.2,15.12791574]
[1735219871389,23.3695589,189.31,189.22,15.12791574]
[1735219871565,23.3695589,189.31,189.23,15.12791574]
[1735219872367,23.3695589,189.31,189.2,15.12791574]
[1735219873988,23.776884,189.26,189.17,15.12791574]
[1735219874168,20.0,189.23,189.14,15.12791574]
[1735219874369,20.0,189.23,189.12,0.79258894]
[1735219874574,20.0,189.23,189.12,15.12791574]
[1735219874787,20.0,189.19,189.1,0.79285105]
[1735219874990,21.551,189.19,189.09,15.12791574]
[1735219875197,21.551,189.19,189.08,15.12791574]
[1735219875565,20.0,189.14,189.04,15.12791574]
[1735219875784,20.0,189.14,189.03,15.12791574]
[1735219876369,23.776884,189.13,189.02,15.12791574]
[1735219876574,23.776884,189.13,189.01,16.75311574]
[1735219876575,1.551,189.12,189.01,16.75311574]
[1735219876785,23.776884,189.11,189.0,15.12791574]
[1735219876969,23.776884,189.11,189.01,15.12791574]
[1735219877171,23.776884,189.11,189.02,15.12791574]
[1735219877786,23.776884,189.11,189.0,15.12791574]
[1735219877991,6.5571,189.1,189.0,15.12791574]
[1735219878558,1.551,189.12,189.07,15.12791574]
[1735219878764,1.551,189.12,189.06,15.12791574]
[1735219879985,1.551,189.12,189.07,15.12791574]
[1735219880194,20.0,189.14,189.07,15.12791574]
[1735219880377,6.5571,189.15,189.03,0.79315251]
[1735219880573,6.5571,189.15,189.05,15.12791574]
[1735219880777,6.5571,189.15,189.07,15.12791574]
[1735219882388,6.5571,189.15,189.09,15.12791574]
[1735219882697,1.5382,189.17,189.1,15.12791574]
[1735219883206,21.5382,189.17,189.05,0.79305762]
[1735219883395,21.5382,189.17,189.07,15.12791574]
[1735219884107,21.5382,189.17,189.08,15.12791574]
[1735219885717,21.5382,189.17,189.09,15.12791574]
[1735219885901,1.5382,189.17,189.09,15.12791574]
[1735219887022,21.5382,189.17,189.08,15.12791574]
[1735219887199,21.5382,189.17,189.07,15.12791574]
[1735219888004,21.5382,189.17,189.08,15.12791574]
[1735219888617,21.5382,189.17,189.07,15.12791574]
[1735219888921,21.5382,189.17,189.05,0.79305762]
[1735219888922,21.5382,189.17,189.09,15.12791574]
[1735219889913,21.5382,189.17,189.1,15.12791574]
[1735219890406,21.5382,189.17,189.09,15.12791574]
[1735219891619,21.5382,189.17,189.1,15.12791574]
[1735219891798,1.5382,189.17,189.11,15.12791574]
[1735219892415,21.5382,189.17,189.08,15.12791574]
[1735219892926,21.5382,189.17,189.07,15.12791574]
[1735219893125,21.5382,189.17,189.06,15.12791574]
[1735219893422,21.5382,189.17,189.08,15.12791574]
[1735219893604,21.5382,189.17,189.09,15.12791574]
[1735219894008,21.5382,189.17,189.11,15.12791574]
[1735219894216,1.5382,189.17,189.12,15.12791574]
[1735219894534,6.1679,189.2,189.13,15.12791574]
[1735219894709,6.1679,189.2,189.1,0.79290085]
[1735219894912,6.1679,189.2,189.12,15.12791574]
[1735219895427,6.1679,189.2,189.13,15.12791574]
[1735219895814,6.1679,189.2,189.15,15.12791574]
[1735219896124,1.551,189.21,189.16,15.12791574]
[1735219896328,6.4058,189.24,189.18,15.12791574]
[1735219896657,6.4058,189.24,189.19,15.12791574]
[1735219897019,6.4058,189.24,189.18,15.12791574]
[1735219897723,1.551,189.26,189.2,15.12791574]
[1735219898231,1.551,189.26,189.16,0.79267264]
[1735219898524,1.551,189.26,189.18,15.12791574]
[1735219898715,1.551,189.26,189.19,15.12791574]
[1735219899231,1.551,189.26,189.18,15.12791574]
[1735219900333,20.0,189.25,189.15,15.12791574]
[1735219900541,20.0,189.25,189.14,15.12791574]
[1735219901141,20.0,189.25,189.15,15.12791574]
[1735219901521,20.0,189.25,189.17,15.12791574]
[1735219902842,20.0,189.25,189.15,15.12791574]
[1735219903025,20.0,189.25,189.16,15.12791574]
[1735219906541,1.551,189.26,189.2,15.12791574]
[1735219906721,6.4058,189.29,189.21,15.92049792]
[1735219907329,6.4058,189.29,189.2,15.12791574]
[1735219909847,6.4058,189.29,189.19,15.12791574]
[1735219910048,6.4058,189.29,189.18,15.12791574]
[1735219910223,6.4058,189.29,189.17,15.92048784]
[1735219910849,6.4058,189.29,189.18,15.12791574]
[1735219911237,23.776884,189.28,189.16,15.12791574]
[1735219911550,23.776884,189.28,189.17,15.12791574]
[1735219913549,23.776884,189.28,189.18,15.12791574]
[1735219915656,23.776884,189.28,189.17,20.0]
[1735219915950,23.776884,189.28,189.17,35.12791574]
[1735219917461,23.776884,189.28,189.18,15.12791574]
[1735219921543,0.12549,189.27,189.17,15.12791574]
[1735219921740,23.902374,189.23,189.12,15.12791574]
[1735219921942,23.902374,189.23,189.11,15.12791574]
[1735219922245,23.902374,189.23,189.12,15.12791574]
[1735219922632,20.0,189.2,189.11,15.12791574]
[1735219923372,1.551,189.19,189.1,15.12791574]
[1735219923667,1.551,189.19,189.11,15.12791574]
[1735219925347,6.0264,189.17,189.08,15.12791574]
[1735219925545,23.776884,189.16,189.06,15.12791574]
[1735219926062,23.776884,189.16,189.07,15.12791574]
[1735219926677,6.0264,189.17,189.07,15.12791574]
[1735219926958,6.0264,189.17,189.11,15.12791574]
[1735219927135,6.0264,189.17,189.12,15.12791574]
[1735219927539,6.0264,189.17,189.11,15.12791574]
[1735219927971,6.0264,189.17,189.1,15.12791574]
[1735219929767,6.0264,189.17,189.07,13.222]
[1735219930058,23.776884,189.16,189.04,14.01769534]
[1735219930263,23.776884,189.16,189.06,15.12791574]
[1735219930560,23.776884,189.16,189.05,15.12791574]
[1735219930741,0.12549,189.15,189.05,15.12791574]
[1735219931060,1.5341,189.14,189.04,15.12791574]
[1735219931262,23.776884,189.13,189.04,15.12791574]
[1735219932769,0.12549,189.12,189.02,15.12791574]
[1735219932971,6.0264,189.11,189.01,15.12791574]
[1735219933140,6.0264,189.11,188.99,1.82798093]
[1735219933339,6.0264,189.11,189.01,15.12791574]
[1735219933643,23.776884,189.1,189.01,15.12791574]
[1735219933844,1.5341,189.08,188.99,16.16257264]
[1735219934058,1.5341,189.08,188.99,1.0346569]
[1735219934340,1.5341,189.08,189.0,15.12791574]
[1735219934541,21.5341,189.08,189.02,15.12791574]
[1735219935070,21.5341,189.08,189.01,15.12791574]
[1735219935573,23.776884,189.07,188.99,16.16257264]
[1735219935773,23.776884,189.07,188.99,1.0346569]
[1735219936664,23.776884,189.07,188.99,16.16257264]
[1735219937371,20.0,189.04,188.99,16.16257264]
[1735219937561,20.0,189.04,188.99,1.0346569]
[1735219937765,20.0,189.04,188.99,16.16257264]
[1735219939092,20.0,189.04,188.99,1.0346569]
[1735219939470,6.0264,189.03,188.99,1.0346569]
[1735219941073,7.7385,189.08,189.01,15.12791574]
[1735219941257,7.7385,189.08,188.99,1.0346569]
[1735219941460,7.7385,189.08,189.02,15.12791574]
[1735219942182,7.7385,189.08,189.01,15.12791574]
[1735219943079,7.7385,189.08,189.0,15.12791574]
[1735219943284,7.7385,189.08,188.99,1.0346569]
[1735219943664,20.0,189.05,188.99,1.0346569]
[1735219943879,7.7385,189.08,188.99,16.16257264]
[1735219945587,7.7385,189.08,189.0,15.12791574]
[1735219945883,7.7385,189.08,189.02,15.12791574]
[1735219946485,7.7385,189.08,189.0,15.12791574]
[1735219946879,7.7385,189.08,189.01,15.12791574]
[1735219947493,7.7385,189.08,189.02,15.12791574]
[1735219947892,7.7385,189.08,189.01,15.12791574]
[1735219948183,7.7385,189.08,189.02,15.12791574]
[1735219949219,7.7413,189.12,189.02,15.12791574]
[1735219952194,7.7413,189.12,189.02,9.69180549]
[1735219953095,20.0,189.08,188.99,1.0346569]
[1735219953272,20.0,189.08,188.99,10.72646239]
[1735219953975,20.0,189.08,189.0,9.69180549]
[1735219954206,20.0,189.08,189.01,15.14633323]
[1735219954398,23.776884,189.11,189.02,15.14633323]
[1735219954695,7.7413,189.12,189.02,15.14633323]
[1735219954993,7.7413,189.12,189.05,15.14633323]
[1735219955364,7.7413,189.12,189.04,15.14633323]
[1735219956487,7.7413,189.12,189.01,0.79325223]
[1735219956488,7.7413,189.12,189.05,15.14633323]
[1735219957082,7.7413,189.12,189.01,14.02005223]
[1735219957287,7.7413,189.12,189.02,15.14633323]
[1735219958893,7.7413,189.12,189.03,15.14633323]
[1735219959275,20.0,189.09,189.02,15.14633323]
[1735219959481,20.0,189.09,189.01,15.14633323]
[1735219959692,20.0,189.09,188.99,16.18099013]
[1735219959990,18.4999,189.19,188.99,1.0346569]
[1735219959991,7.7413,189.04,188.99,1.0346569]
[1735219964705,20.0,189.01,188.99,1.0346569]
[1735219965210,7.7413,189.04,188.99,1.0346569]
[1735219966695,20.0,189.0,188.99,1.0346569]
[1735219967711,43.776884,189.0,188.99,1.0346569]
[1735219968206,43.902374,189.0,188.99,1.0346569]
[1735219968413,51.643674,189.0,188.99,1.0346569]
[1735219969019,60.902874,189.0,188.99,1.0346569]
[1735219969392,23.776884,188.95,188.87,15.14633323]
[1735219970221,23.776884,188.95,188.86,15.14633323]
[1735219970386,20.0,188.92,188.86,15.14633323]
[1735219970990,1.5509,188.96,188.86,15.14633323]
[1735219974224,20.0,188.92,188.83,2.41192205]
[1735219974399,20.0,188.92,188.84,15.14633323]
[1735219974593,20.0,188.92,188.85,15.14633323]
[1735219976745,20.0,188.92,188.86,15.14633323]
[1735219977045,1.5509,188.96,188.88,15.14633323]
[1735219977546,1.5509,188.96,188.87,15.14633323]
[1735219977942,1.5509,188.96,188.86,15.14633323]
[1735219978546,1.5509,188.96,188.87,15.14633323]
[1735219978946,1.5509,188.96,188.86,15.14633323]
[1735219979274,20.0,188.95,188.86,15.14633323]
[1735219981342,20.0,188.95,188.87,15.14633323]
[1735219981546,20.0,188.95,188.86,15.14633323]
[1735219981941,43.776884,188.95,188.85,15.14633323]
[1735219982124,20.0,188.93,188.85,15.14633323]
[1735219982747,20.0,188.92,188.85,15.14633323]
[1735219983736,23.776884,188.95,188.81,15.14633323]
[1735219983737,20.0,188.9,188.81,15.14633323]
[1735219983918,20.0,188.88,188.8,15.14633323]
[1735219984119,20.0,188.88,188.8,9.71452183]
[1735219984620,20.0,188.88,188.81,9.71452183]
[1735219985328,20.0,188.88,188.8,9.71452183]
[1735219985836,20.0,188.88,188.77,0.79429322]
[1735219986040,20.0,188.84,188.77,0.79429322]
[1735219986245,20.0,188.84,188.77,15.18335683]
[1735219986246,23.902374,188.83,188.77,15.18335683]
[1735219986552,20.0,188.82,188.74,15.18335683]
[1735219986773,20.0,188.82,188.73,15.18335683]
[1735219987222,20.0,188.78,188.69,1.5533]
[1735219987421,20.0,188.78,188.7,15.18335683]
[1735219987647,1.5509,188.81,188.73,15.18335683]
[1735219987853,1.5509,188.81,188.74,15.18335683]
[1735219988034,1.5509,188.81,188.73,15.18335683]
[1735219988851,1.5509,188.81,188.72,15.18335683]
[1735219989242,21.5509,188.81,188.71,15.18335683]
[1735219989447,20.0,188.8,188.71,15.18335683]
[1735219989626,20.0,188.8,188.7,15.18335683]
[1735219990016,20.0,188.8,188.69,1.5533]
[1735219990235,20.0,188.8,188.71,15.18335683]
[1735219992248,20.0,188.8,188.72,15.18335683]
[1735219992452,1.5509,188.81,188.74,15.18335683]
[1735219992752,20.0,188.82,188.75,15.18335683]
[1735219993253,20.0,188.82,188.74,15.18335683]
[1735219993956,20.0,188.82,188.73,15.18335683]
[1735219994758,20.0,188.82,188.72,15.18335683]
[1735219994923,20.0,188.82,188.71,15.18335683]
[1735219995248,20.0,188.8,188.71,15.18335683]
[1735219996255,20.0,188.8,188.7,15.18335683]
[1735219996852,20.0,188.8,188.66,15.18335683]
[1735219996853,20.0,188.76,188.66,15.18335683]
[1735219997019,20.0,188.76,188.67,38.96024083]
[1735219997223,20.0,188.76,188.68,15.18335683]
[1735219997646,20.0,188.76,188.66,15.18335683]
[1735219998029,20.0,188.75,188.66,15.18335683]
[1735219998236,20.0,188.73,188.61,2.45973696]
[1735219998520,20.0,188.73,188.64,15.18335683]
[1735219999458,20.0,188.73,188.61,1.6648]
[1735219999459,0.12549,188.72,188.62,15.18335683]
[1735219999647,20.12549,188.72,188.62,15.18335683]
[1735219999835,20.12549,188.72,188.61,1.6648]
[1735219999836,20.0,188.68,188.61,15.18335683]
[1735220000525,20.0,188.68,188.6,15.18335683]
[1735220001538,20.0,188.68,188.56,6.91184811]
[1735220001750,20.0,188.68,188.56,0.79504811]
[1735220001951,20.0,188.68,188.6,15.18335683]
[1735220002253,20.0,188.68,188.63,15.18335683]
[1735220003354,7.5826,188.77,188.66,15.18335683]
[1735220003568,7.5826,188.77,188.68,15.18335683]
[1735220003853,7.5826,188.77,188.66,15.18335683]
[1735220004359,0.12549,188.76,188.64,15.18335683]
[1735220004559,20.0,188.74,188.63,15.18335683]
[1735220004727,20.12549,188.73,188.62,15.18335683]
[1735220005955,20.0,188.69,188.6,15.18335683]
[1735220006138,26.0488,188.69,188.59,38.96024083]
[1735220006627,27.5826,188.69,188.59,15.18335683]
[1735220007660,27.5826,188.69,188.58,15.18335683]
[1735220008957,27.5826,188.69,188.59,15.18335683]
[1735220009862,20.0,188.68,188.59,15.18335683]
[1735220010158,27.5826,188.69,188.59,15.18335683]
[1735220010342,27.5826,188.69,188.58,15.18335683]
[1735220011552,27.5826,188.69,188.56,23.776884]
[1735220011764,20.0,188.66,188.58,15.18335683]
[1735220012059,20.0,188.66,188.59,15.18335683]
[1735220012231,20.0,188.66,188.59,9.73565621]
[1735220012837,20.0,188.66,188.58,9.73565621]
[1735220013869,20.0,188.66,188.59,9.73565621]
[1735220014170,20.0,188.66,188.56,23.776884]
[1735220014344,20.0,188.66,188.58,9.73565621]